Cogmind - Beta 10.1 *** ADVENTURER MODE // 2020.11.22 @ 00:44:20 Player: Ms Vella Result: Destroyed self with Rocket Launcher Performance ------------- Evolutions (0) 0 Regions Visited (2) 400 Robots Destroyed (29) 145 Value Destroyed (659) 659 Prototype IDs (6) 120 Alien Tech Used (0) 0 Bonus (0) 0 TOTAL SCORE: 1324 Bonus ------- None Cogmind --------- Core Integrity 0/250 Matter 165/300 Energy 150/150 System Corruption 1% Temperature Cool (29) Movement Walking (210) Ox3 Location -10/Mines Parts ------- > --- POWER (1) -------- Light Angular Momentum Engine > --- PROPULSION (2) --- Aluminum Leg Aluminum Leg > --- UTILITY (2) ------ Large Storage Unit High-capacity Storage Unit > --- WEAPON (2) ------- Light Cannon Rocket Launcher > --- INVENTORY (18) --- Ion Engine Ion Engine Aluminum Leg Large Storage Unit Large Storage Unit Large Storage Unit High-capacity Battery (400) Structural Scanner Experimental Sensor Array Improved Targeting Computer Light Armor Plating Light Assault Rifle Rocket Launcher Rocket Launcher Rocket Launcher Peak State ------------ > --- POWER ------------ Light Angular Momentum Engine > --- PROPULSION ------- Aluminum Leg Aluminum Leg > --- UTILITY ---------- Large Storage Unit High-capacity Storage Unit > --- WEAPON ----------- Light Cannon Rocket Launcher > --- INVENTORY -------- Ion Engine Ion Engine Aluminum Leg Large Storage Unit Large Storage Unit Large Storage Unit High-capacity Battery Structural Scanner Experimental Sensor Array Improved Targeting Computer Light Armor Plating Light Assault Rifle Light Cannon Rocket Launcher Rocket Launcher Rocket Launcher [Rating: 14] Favorites ----------- Power Ion Engine Engine Ion Engine Propulsion Aluminum Leg Leg Aluminum Leg Utility Large Storage Unit Storage Large Storage Unit Weapon Light Cannon Energy Gun EM Pulse Gun Ballistic Gun Light Assault Rifle Ballistic Cannon Light Cannon Launcher Rocket Launcher Build | -11 -10 -10 ------- Run | Scr Mat Min Slots Evolved . | . . . Power . | . . . Propulsion . | . . . Utility . | . . . Weapon . | . . . Parts Attached 19 | 1 11 7 Power 2 | . 1 1 Engine 2 | . 1 1 Core . | . . . Reactor . | . . . Propulsion 6 | . 5 1 Treads . | . . . Leg 6 | . 5 1 Wheel . | . . . Hover . | . . . Flight . | . . . Utility 3 | . 3 . Device . | . . . Storage 3 | . 3 . Processor . | . . . Hackware . | . . . Protection . | . . . Artifact . | . . . Weapon 8 | 1 2 5 Energy Gun 2 | 1 . 1 Energy Cannon . | . . . Ballistic Gun . | . . . Ballistic Cannon 4 | . 2 2 Launcher 2 | . . 2 Special Weapon . | . . . Impact Weapon . | . . . Slashing Weapon . | . . . Piercing Weapon . | . . . Special Melee Weapon . | . . . Unidentified Prototypes . | . . . Parts Lost 5 | . 2 3 Power . | . . . Propulsion . | . . . Utility . | . . . Weapon 5 | . 2 3 Highest Loss Streak 2 | . 2 1 Average Slot Usage (%) 99 | . 98 99 Engine 14 | . 14 14 Leg 28 | . 28 28 Storage 27 | . 27 28 Energy Gun 12 | . 18 6 Ballistic Cannon 13 | . 8 18 Launcher 1 | . . 2 Naked Turns . | . . . Heaviest Build 64 | 13 59 64 Greatest Support 20 | 20 20 20 Greatest Overweight (x) 5 | . 5 3 Average Overweight (x) 2 | . 1 2 Largest Inventory Capacity 18 | 6 18 18 Average Capacity 17 | 6 16 18 Most Carried 18 | 5 18 18 Average Carried 15 | 2 13 16 Final Capacity 18 | 6 18 18 Final Carried 18 | 2 18 15 Class Distribution -------------------- 100% | Mutant Dominant Class ---------------- Mutant | -10/Materials Mutant | -10/Mines Resources | -11 -10 -10 ----------- Run | Scr Mat Min Matter Collected 565 | 207 159 199 Remotely . | . . . Salvage Created 791 | . 699 92 Parts 52 | . 41 11 Haulers Intercepted 2 | . 2 . Recyclers Shooed 1 | . . 1 Parts Field Recycled . | . . . Retrieved Matter . | . . . Parts Self-Destructed . | . . . Prevented . | . . . Kills | -11 -10 -10 ------- Run | Scr Mat Min Combat Hostiles Destroyed 26 | . 17 9 Guns 9 | . 8 1 Cannons 12 | . 7 5 AOE 4 | . 1 3 Classes Destroyed 4 | . 4 . Tunneler 1 | . 1 . Hauler 2 | . 2 . Swarmer 12 | . 6 6 Grunt 14 | . 11 3 Best Kill Streak 6 | . 4 6 Combat Bots Only 6 | . 4 6 Max Kills in Single Turn 1 | . 1 1 Gunslinging . | . . . Exploded 1 | . 1 1 Melee . | . . . Uniques/NPCs Destroyed . | . . . Combat | -11 -10 -10 -------- Run | Scr Mat Min Damage Taken 1257 | . 542 715 Core 258 | . 108 150 Absorbed by Shields . | . . . Core Remaining (%) 100 | 100 . . Volleys Fired 77 | . 45 32 Largest 2 | . 2 2 Hottest 80 | . 80 75 Shots Fired 138 | . 88 50 Gun 66 | . 62 4 Cannon 66 | . 26 40 Launcher 6 | . . 6 Special . | . . . Kinetic 66 | . 26 40 Thermal . | . . . Explosive 6 | . . 6 Electromagnetic 66 | . 62 4 Robot Hit Streak 18 | . 18 13 Robot Miss Streak 4 | . 2 4 Penetration Max . | . . . Secondary Targets 1 | . 1 . Max Gunslinging Chain 1 | . 1 . Shots Hit Robots 101 | . 69 32 Core Hits 39 | . 28 11 Critical Hits . | . . . Critical Kills . | . . . Critical Parts Destroyed . | . . . Melee Attacks . | . . . Impact . | . . . Slashing . | . . . Piercing . | . . . Sneak Attacks . | . . . Combat Hostiles . | . . . Follow-up Attacks . | . . . Damage Inflicted 1896 | . 1028 868 Guns 626 | . 604 22 Cannons 837 | . 320 517 Explosions 433 | . 104 329 Melee . | . . . Ramming . | . . . Kinetic 837 | . 320 517 Thermal 104 | . 104 . Explosive 329 | . . 329 Electromagnetic 626 | . 604 22 Impact . | . . . Slashing . | . . . Piercing . | . . . Highest Corruption 1 | . 1 1 Average Corruption 1 | . 1 1 Corruption Purged . | . . . Effects 7 | . 3 4 Message Errors 2 | . . 2 Energy Discharges 3 | . 2 1 Targeting Errors 2 | . 1 1 Overload Shots . | . . . Overflow Damage 51 | . 1 50 Projectiles 5 | . . 5 Explosions 46 | . 1 45 Melee . | . . . Knockbacks 11 | . 3 8 Impact . | . . . Kinetic 11 | . 3 8 Secondary . | . . . Self-Inflicted Damage 33 | . . 33 Shots 2 | . . 2 Rammed . | . . . Targets Rammed . | . . . Kicked . | . . . Crushed . | . . . Highest Temperature 240 | . 174 240 Average Temperature 66 | . 58 80 Received Heat Transfer 507 | . 234 273 Siege Activations . | . . . Robots Corrupted 2 | . 2 . Combat Hostiles 1 | . 1 . Parts Fried 3 | . 3 . Impact Corruptions . | . . . Robots Melted . | . . . Combat Hostiles . | . . . Parts Melted . | . . . Heat Transferred 150 | . 150 . Parts Sabotaged . | . . . Parts Stolen . | . . . Parts Stripped . | . . . Power Chain Reactions 2 | . 2 . Missiles Intercepted . | . . . Alert | -11 -10 -10 ------- Run | Scr Mat Min Peak Influence 203 | . 203 130 Initial 1 | . . 1 Average 51 | . 61 41 Maximum Alert Level 1 | . 1 . Low Security (%) 98 | 100 97 100 Level 1 1 | . 2 . Level 2 . | . . . Level 3 . | . . . Level 4 . | . . . Level 5 . | . . . High Security . | . . . Max Security . | . . . Squads Dispatched 1 | . 1 . Investigation 1 | . 1 . Extermination . | . . . Reinforcement . | . . . Assault . | . . . Garrison . | . . . Intercept . | . . . Construction Impeded . | . . . Haulers Reinforced . | . . . Stealth | -11 -10 -10 --------- Run | Scr Mat Min Distress Signals 1 | . 1 . Communications Jammed . | . . . Distress Signals . | . . . Times Spotted 36 | . 25 11 Peak Tracking Total 4 | . 4 3 Tactical Retreats . | . . . Traps | -11 -10 -10 ------- Run | Scr Mat Min Traps Triggered 2 | . 2 . Indirectly . | . . . Trap Hack Attempts . | . . . Triggered . | . . . Disarmed . | . . . Reprogrammed . | . . . Reused . | . . . Traps Extracted . | . . . Installed . | . . . Triggered . | . . . Machines | -11 -10 -10 ---------- Run | Scr Mat Min Machines Disabled 1 | . . 1 Max in Single Turn 1 | . . 1 Machines Sabotaged . | . . . Garrisons Compromised . | . . . Overloaded Fab Kills . | . . . Fab Network Shutdowns . | . . . Hacking | -11 -10 -10 --------- Run | Scr Mat Min Machines Accessed 10 | . 9 1 Terminals 9 | . 8 1 Fabricators . | . . . Repair Stations . | . . . Recycling Units 1 | . 1 . Scanalyzers . | . . . Garrison Access . | . . . Total Hacks 37 | . 34 3 Successful 21 | . 18 3 Failed 15 | . 15 . Catastrophic . | . . . Database Lockouts 1 | . 1 . Manual 21 | . 20 1 Terminals 33 | . 30 3 Fabricators . | . . . Repair Stations . | . . . Recycling Units 4 | . 4 . Scanalyzers . | . . . Garrison Access . | . . . Terminal Hacks 15 | . 12 3 Prototype ID Bank 9 | . 8 1 Level Access Points 1 | . 1 . Branch Access Points 1 | . 1 . Dispatch Records 2 | . 1 1 Reinforcement Status 1 | . 1 . Zone Layout 1 | . . 1 Fabricator Hacks . | . . . Repair Station Hacks . | . . . Recycling Unit Hacks 2 | . 2 . Report Inventory 1 | . 1 . Retrieve Components 1 | . 1 . Scanalyzer . | . . . Garrison Access Hacks . | . . . Unauthorized Hacks 4 | . 4 . Terminals 4 | . 4 . Botnet 4 | . 4 . Fabricators . | . . . Repair Stations . | . . . Recycling Units . | . . . Scanalyzers . | . . . Garrison Access . | . . . Data Cores Recovered . | . . . Used . | . . . Hacking Detections 10 | . 9 1 Full Trace Events 1 | . 1 . Feedback Events . | . . . Feedback Blocked . | . . . Robot Schematics Acquired . | . . . Robots Built . | . . . Matter . | . . . Time . | . . . Total Robot Build Rating . | . . . Part Schematics Acquired . | . . . Parts Built . | . . . Matter . | . . . Time . | . . . Total Part Build Rating . | . . . Parts Repaired . | . . . Time . | . . . Parts Recycled . | . . . Recycled Matter . | . . . Retrieved Matter . | . . . Retrieved Components 3 | . 3 . Parts Scanalyzed . | . . . Part Schematics Acquired . | . . . Parts Damaged . | . . . Bothacking | -11 -10 -10 ------------ Run | Scr Mat Min Used RIF Installer . | . . . Robots Hacked . | . . . Non-combat . | . . . Combat . | . . . Robot Hacks Applied . | . . . Relay Couplers Released . | . . . Robots Rewired . | . . . Allies Hacked . | . . . Hacks Repelled . | . . . Allies | -11 -10 -10 -------- Run | Scr Mat Min Total Allies . | . . . Largest Group . | . . . Highest-Rated Group . | . . . Highest-Rated Ally . | . . . Total Orders . | . . . Ally Attacks . | . . . Total Damage . | . . . Kills . | . . . Allies Corrupted . | . . . Allies Melted . | . . . Intel | -11 -10 -10 ------- Run | Scr Mat Min Robot Analysis Total . | . . . Derelict Logs Recovered . | . . . Drone Launches . | . . . Drone Recoveries . | . . . Exploration | -11 -10 -10 ------------- Run | Scr Mat Min Turns Passed 2555 | 6 1316 1233 Spaces Moved 1193 | 3 637 553 Core . | . . . Treads . | . . . Legs 1193 | 3 637 553 Wheels . | . . . Hover . | . . . Flight . | . . . Fastest Speed 120 | 120 120 180 Average Speed 189 | 120 177 202 Slowest Speed 270 | 120 270 210 Overloaded Moves . | . . . Propulsion Burnouts . | . . . Robots Hopped . | . . . Cave-ins Triggered . | . . . Exploration Rate (%) 64 | 2 94 98 Regions Visited 2 Branch Regions 1 Pre-discovered Areas . | . . . Known Exits Taken 1 | . 1 . Unknown Exits Taken 1 | 1 . . Scrap Searched 2 | . . 2 Spaces Dug . | . . . Terrain Destroyed 47 | . 6 41 Melee . | . . . Projectile . | . . . AOE 47 | . 6 41 Terrain Rammed . | . . . Walls Destroyed . | . . . Machines Disabled . | . . . Actions | -11 -10 -10 --------- Run | Scr Mat Min Total 1361 | 7 736 618 Wait 30 | . 9 21 Move 1191 | 2 636 553 Hop . | . . . Pick Up 25 | . 23 2 Fast Attach 1 | . 1 . Attach 5 | . 2 3 Detach . | . . . Swap 13 | 1 8 4 Drop 19 | 4 12 3 Fire 77 | . 45 32 Melee . | . . . Ram . | . . . Kick . | . . . Crush . | . . . Escape Stasis . | . . . Rewire . | . . . Trap . | . . . Miscellaneous . | . . . Route ------- -11/Scrapyard -10/Materials (discovered 5 exits: *Mat x3 / *Min x2) -10/Mines (discovered 3 exits: *Mat x2 / [*Exi]) History --------- Turn | Location | Event 5 | -11/Scrapyard | Discovered new exit (range 0) 7 | -11/Scrapyard | Entered Materials 316 | -10/Materials | Build established: Mutant 323 | -10/Materials | Discovered new exit (range 7) 372 | -10/Materials | Identified exit to Mines 614 | -10/Materials | Discovered new exit (range 10) 713 | -10/Materials | Central database locked down 1126 | -10/Materials | Discovered new exit (range 16) 1176 | -10/Materials | Identified exit to Materials 1323 | -10/Materials | Entered Mines 1390 | -10/Mines | Found a damaged Exp. Sensor Array with a note attached 1396 | -10/Mines | Found Prototype Device 1420 | -10/Mines | Discovered exit to Materials (range 6) 1588 | -10/Mines | Core integrity fell below 50% 1845 | -10/Mines | Received a Rocket Launcher from a helpful Derelict 2202 | -10/Mines | Core integrity fell below 20% 2225 | -10/Mines | Discovered exit to Materials (range 9) 2427 | -10/Mines | Deemed a non-threat by the Exiles lab entrance 2429 | -10/Mines | Discovered new exit (range 5) 2556 | -10/Mines | Destroyed self with Rocket Launcher Last Messages --------------- 02165_ S-10 Pest knocked back. 02167_ EM Pulse Gun destroyed. 02168_ Destroyed Lgt. Ion Engine. 02173_ Acquired 19 matter. 02175_ S-10 Pest knocked back. 02178_ S-10 Pest destroyed. 02189_ Acquired 10 matter. 02202_ Destroyed Flight Unit. 02204_ S-10 Pest destroyed. 02206_ Destroyed Flight Unit. 02208_ S-10 Pest destroyed. 02225_ EXIT=FOUND: MATERIALS 02258_ The unstable cave ceiling collapses. 02273_ &7CPELRALMN8NBD ,IPYLY%WQ 02427_ "No threat detected, you may enter." 02429_ EXIT=FOUND 02550_ Critical hit. 02550_ Lgt. Cannon destroyed. 02554_ Machine disabled. 02556_ The unstable cave ceiling collapses. Map ----- +----------------------------------------------------+ | ?????????## #??????????????????????? | | ??????????## #??????????????????????? | | ??####?????# ##???????????????????###? | | ?## ##????# ##???????????????????## # | | ?# #????# #????????????????????# | | ?# ###### #????????????????????# | | ?# #????####????????????# | | ?# ### #???## ##???????????# | | ?# ##?# ####???# #???####?????# | | ?# ##?# #??????# ##?## ##?????# | | ?# ### ###?????# #?# ##?????# | | ?## ##????# ### !=####### | | ??# ####### / | | ??## # ! | | ???##### ## ######## | | ???????### ## ####### ##??????# | | ?????????# #?????## ##???????? | | ?????????# #??????# #????????? | | ?????????##########???# #????????? | | ????????##" #??# #????????? | | ????????#" #?# ##????????? | | ????????#!] Y ??# #####?????????? | | ????????#|[ Y #??## ##???????#####?? | | ????????#"" ##??##????????## ##? | | ????????##"?# #????????##### ## | | ?????????????# @ ##??????## | | ?????????????# ###????# | | ?????????????## ##??## # | | ??????????????## #### ##### | | ???????????????## ## ##???? | | ????????????????# ## #????? | | ????????????????#==##### #????? | | ????????????????#%=#???## ##???# | | ????????????????#! #????#### ##??# | | ?????????????#### #???????## #### | | ?????????????# = #????????# | | ?????????????# #?####???# # ### | | ?????????????# ###### ##??#### ## #?? | | ?????????????# #??## #?????# ## #?? | | ?????????????# #??# ##????# ## #?? | | ?????????????# #??# ##???# ## #?? | | ?????????????# #???# ##??# ## #?? | | ?????????????# #????# ##?# ## #?? | | ?????????????# ##???# ### ## #?? | | ???????????### ##### ## #?? | | ???????????# # ## #### ## #?# | | ???????????# # ##??# ## #?# | | ???????????# # ##???# ## #?# | | ??????????## [ # ###????# ## #?# | | ?????????## # ##??????# ## #?# | +----------------------------------------------------+ Best States ------------- Heat Dissipation 25 Energy Generation 18 Energy Capacity 250 Matter Stores 300 Matter Capacity 300 Sight Range 16 Terrain Scan Density 10 Resistance: KI 20 Resistance: TH 20 Resistance: EX 20 Resistance: EM 20 Resistance: I 20 Resistance: S 20 Resistance: P 20 Evasion (%) 40 Offensive Hacking 10 Item Schematics ----------------- None Robot Schematics ------------------ None Fabricated ------------ Nothing Alien Tech Used ----------------- None Achievements -------------- None Challenges ------------ None Game ------ Seed ThrusterPoweredFirepult Manual? 0 Play Time 00:19:44 Cumulative 514.1 hours Start 2020.11.21 @ 23:43:10 End 2020.11.22 @ 00:44:20 Sessions 1 Manual Loads 0 Difficulty Adventurer Special Mode None Game No. 131 Rogue 1 Adventurer 130 Explorer 0 Win Type - Total 3 Types 3/0/0/0/0/0/0/0/0 Lore% 65 Gallery% 73 Achievement% 55 Wizard Run 0 Options --------- ASCII 0 Keyboard 0 Movement Mouse Keybinds 0 Fullscreen 0 Font 12/Smallcaps Map View 83x54 Tactical HUD 1 Map Filters NONE Filters NONE Steam 1 RUN: 5f0e22fe-5ff2-40a0-b5be-d0cbfcc65443